[Event "BL 2018-19"]
[Site "Berlin"]
[Date "2019.03.01"]
[Round "9.22"]
[White "Saric, Ivan"]
[Black "Beikert, Guenther"]
[Result "1-0"]
[ECO "C95"]
[WhiteElo "2692"]
[BlackElo "2403"]
[Annotator "ChessBase"]
[PlyCount "83"]
[EventDate "2018.11.10"]
[EventType "team-tourn"]
[EventCountry "GER"]
[SourceTitle "playchess.com"]
[Source "ChessBase"]
[SourceQuality "1"]
[WhiteTeam "Hockenheim"]
[BlackTeam "Viernheim"]
[TimeControl "40/6000+30:3000+30"]

1. e4 {[%emt 0:00:00]} e5 {[%emt 0:00:00]} 2. Nf3 {[%emt 0:00:00]} Nc6 {[%emt 0:00:00]} 3. Bb5 {[%emt 0:00:00]} a6 {[%emt 0:01:19]} 4. Ba4 {[%emt 0:00:02]} Nf6 {[%emt 0:01:59]} 5. O-O {[%emt 0:00:17]} Be7 {[%emt 0:00:06]} 6. Re1 {[%emt 0:00:04]} b5 {[%emt 0:00:05]} 7. Bb3 {[%emt 0:00:04]} d6 {[%emt 0:00:11]} 8. c3 {[%emt 0:00:06]} O-O {[%emt 0:00:04]} 9. h3 {[%emt 0:00:04]} Nb8 {[%emt 0:00:36]} 10. d4 {[%emt 0:00:06]} Nbd7 {[%emt 0:00:04]} 11. Nbd2 {[%emt 0:00:07]} Bb7 {[%emt 0:00:06]} 12. Bc2 {[%emt 0:00:11]} Re8 {[%emt 0:00:16]} 13. Nf1 {[%emt 0:00:06]} Bf8 {[%emt 0:00:06]} 14. Ng3 {[%emt 0:00:05]} g6 {[%emt 0:00:40]} 15. a4 {[%emt 0:00:22]} c5 {[%emt 0:00:37]} 16. d5 {[%emt 0:00:16]} c4 {[%emt 0:00:17]} 17. Bg5 {[%emt 0:00:24]} h6 {[%emt 0:01:04]} 18. Be3 {[%emt 0:00:05]} Qc7 {[%emt 0:02:02]} 19. Qd2 {[%emt 0:03:42]} h5 {[%emt 0:00:10]} 20. Rf1 {[%emt 0:09:12]} Rab8 {[%emt 0:04:10]} 21. Nh4 {[%emt 0:04:52]} Bc8 {[%emt 0:00:59]} 22. axb5 {[%emt 0:00:28]} axb5 {[%emt 0:00:14]} 23. f4 {[%emt 0:01:34]} exf4 {[%emt 0:04:14]} 24. Bxf4 {[%emt 0:02:14]} Nc5 {[%emt 0:03:12]} 25. Bh6 {[%emt 0:09:55]} Nh7 {[%emt 0:13:17]} 26. Bxf8 {[%emt 0:20:03]} Rxf8 {[%emt 0:00:33]} 27. Qh6 {[%emt 0:07:51]} Qe7 {[%emt 0:01:49]} 28. Nf3 {[%emt 0:01:34]} Re8 {[%emt 0:14:12]} 29. e5 {[%emt 0:02:39]} dxe5 {[%emt 0:00:14]} 30. Bxg6 {[%emt 0:01:54]} fxg6 {[%emt 0:00:16]} 31. Qxg6+ {[%emt 0:00:08]} Kh8 {[%emt 0:00:08]} 32. Nh4 {[%emt 0:03:24]} Rb7 {[%emt 0:04:40]} 33. Qxh5 {[%emt 0:08:04]} Qd8 {[%emt 0:08:29]} 34. Ra8 {[%emt 0:04:26]} Rg7 {[%emt 0:05:08]} 35. Ng6+ {[%emt 0:06:54]} Rxg6 {[%emt 0:05:18]} 36. Qxg6 {[%emt 0:00:04]} Rg8 {[%emt 0:00:30]} 37. Qc6 {[%emt 0:00:27]} Nd3 {[%emt 0:11:37]} 38. Rf7 {[%emt 0:01:23]} Qg5 {[%emt 0:01:54]} 39. Rxc8 {[%emt 0:00:29]} Qe3+ {[%emt 0:08:40]} 40. Kh1 {[%emt 0:00:05]} Qe1+ {[%emt 0:01:19]} 41. Nf1 {[%emt 0:52:52]} Nf2+ {[%emt 0:50:11]} 42. Kh2 {[%emt 0:00:39]} 1-0

[Event "BL 2018-19"]
[Site "Berlin"]
[Date "2019.03.01"]
[Round "9.22"]
[White "Rogozenco, Dorian"]
[Black "Stopa, Jacek"]
[Result "1/2-1/2"]
[ECO "A65"]
[WhiteElo "2495"]
[BlackElo "2431"]
[Annotator "ChessBase"]
[PlyCount "133"]
[EventDate "2018.11.10"]
[EventType "team-tourn"]
[EventCountry "GER"]
[SourceTitle "playchess.com"]
[Source "ChessBase"]
[SourceQuality "1"]
[WhiteTeam "Hamburg SK"]
[BlackTeam "Kiel"]
[TimeControl "40/6000+30:3000+30"]

1. d4 {[%emt 0:00:00]} Nf6 {[%emt 0:00:00]} 2. c4 {[%emt 0:00:20]} e6 {[%emt 0:00:08]} 3. Nc3 {[%emt 0:01:04]} c5 {[%emt 0:00:21]} 4. d5 {[%emt 0:00:37]} exd5 {[%emt 0:00:06]} 5. cxd5 {[%emt 0:00:08]} d6 {[%emt 0:00:03]} 6. e4 {[%emt 0:00:14]} g6 {[%emt 0:00:06]} 7. Bd3 {[%emt 0:00:57]} Bg7 {[%emt 0:00:13]} 8. h3 {[%emt 0:00:35]} O-O {[%emt 0:00:08]} 9. Nf3 {[%emt 0:00:22]} b5 {[%emt 0:00:07]} 10. Bxb5 {[%emt 0:01:49]} Nxe4 {[%emt 0:00:37]} 11. Nxe4 {[%emt 0:00:11]} Qa5+ {[%emt 0:00:07]} 12. Nfd2 {[%emt 0:00:40]} Qxb5 {[%emt 0:00:14]} 13. Nxd6 {[%emt 0:00:16]} Qa6 {[%emt 0:00:05]} 14. N2c4 {[%emt 0:00:25]} Nd7 {[%emt 0:00:40]} 15. O-O {[%emt 0:00:44]} Ne5 {[%emt 0:00:13]} 16. Nxc8 {[%emt 0:02:46]} Raxc8 {[%emt 0:00:10]} 17. Nxe5 {[%emt 0:08:07]} Bxe5 {[%emt 0:00:10]} 18. Qf3 {[%emt 0:11:33]} Rfd8 {[%emt 0:07:03]} 19. Rd1 {[%emt 0:19:56]} Qd6 {[%emt 0:19:07]} 20. Rb1 {[%emt 0:09:52]} Bd4 {[%emt 0:15:11]} 21. Be3 {[%emt 0:01:21]} Qxd5 {[%emt 0:02:09]} 22. Qxd5 {[%emt 0:05:05]} Rxd5 {[%emt 0:00:30]} 23. Rd2 {[%emt 0:04:08]} Rcd8 {[%emt 0:04:53]} 24. Rbd1 {[%emt 0:02:04]} a5 {[%emt 0:02:22]} 25. Kf1 {[%emt 0:01:57]} f5 {[%emt 0:02:45]} 26. Bxd4 {[%emt 0:02:37]} cxd4 {[%emt 0:01:42]} 27. Ke2 {[%emt 0:00:33]} Rb5 {[%emt 0:07:54]} 28. Rc2 {[%emt 0:08:54]} Kf7 {[%emt 0:02:48]} 29. Kd3 {[%emt 0:01:33]} Kf6 {[%emt 0:08:26]} 30. Re1 {[%emt 0:03:34]} Rd6 {[%emt 0:02:21]} 31. Ree2 {[%emt 0:03:37]} a4 {[%emt 0:10:18]} 32. Rc4 {[%emt 0:05:55]} Rdb6 {[%emt 0:00:02]} 33. Rxa4 {[%emt 0:03:13]} Rxb2 {[%emt 0:00:04]} 34. Rxd4 {[%emt 0:00:18]} Rb1 {[%emt 0:00:05]} 35. Rc2 {[%emt 0:07:31]} Ra6 {[%emt 0:03:03]} 36. Rdc4 {[%emt 0:01:04]} Kg5 {[%emt 0:01:10]} 37. Rc6 {[%emt 0:01:17]} Ra3+ {[%emt 0:00:08]} 38. R6c3 {[%emt 0:00:11]} Ra8 {[%emt 0:00:14]} 39. Rb3 {[%emt 0:01:45]} Ra1 {[%emt 0:01:40]} 40. Rbb2 {[%emt 0:00:04]} h5 {[%emt 0:01:34]} 41. Re2 {[%emt 0:22:07]} h4 {[%emt 0:02:46]} 42. Rbc2 {[%emt 0:00:41]} Ra6 {[%emt 0:06:09]} 43. Kc4 {[%emt 0:01:47]} Ra8 {[%emt 0:02:28]} 44. Kb3 {[%emt 0:01:01]} Rb1+ {[%emt 0:01:34]} 45. Rb2 {[%emt 0:04:37]} Ra1 {[%emt 0:04:22]} 46. Red2 {[%emt 0:03:16]} Rb8+ {[%emt 0:01:57]} 47. Kc4 {[%emt 0:01:13]} Rc8+ {[%emt 0:00:38]} 48. Kd3 {[%emt 0:02:33]} Rd8+ {[%emt 0:01:47]} 49. Kc4 {[%emt 0:02:09]} Rc8+ {[%emt 0:00:21]} 50. Kb5 {[%emt 0:01:58]} Ra8 {[%emt 0:00:41]} 51. Rbc2 {[%emt 0:01:19]} Rb1+ {[%emt 0:01:35]} 52. Kc4 {[%emt 0:00:22]} Rc8+ {[%emt 0:03:39]} 53. Kd3 {[%emt 0:00:15]} Ra8 {[%emt 0:01:02]} 54. Rc4 {[%emt 0:04:28]} Ra1 {[%emt 0:00:54]} 55. f4+ {[%emt 0:01:59]} Kh6 {[%emt 0:00:30]} 56. Rcc2 {[%emt 0:01:10]} Ra3+ {[%emt 0:03:32]} 57. Kd4 {[%emt 0:04:35]} Ra5 {[%emt 0:02:44]} 58. Kc3 {[%emt 0:01:58]} Ra4 {[%emt 0:02:37]} 59. Rf2 {[%emt 0:00:25]} Rb1 {[%emt 0:00:49]} 60. Rb2 {[%emt 0:00:54]} Ra1 {[%emt 0:01:11]} 61. Kb3 {[%emt 0:00:35]} Ra7 {[%emt 0:00:19]} 62. Rbd2 {[%emt 0:00:52]} Rb7+ {[%emt 0:01:37]} 63. Kc3 {[%emt 0:00:30]} Ra7 {[%emt 0:00:23]} 64. Kb3 {[%emt 0:01:28]} Rb7+ {[%emt 0:00:31]} 65. Kc3 {[%emt 0:00:04]} Ra7 {[%emt 0:00:05]} 66. Kb3 {[%emt 0:00:13]} Rb7+ {[%emt 0:00:07]} 67. Kc3 {[%emt 0:00:05]} 1/2-1/2

[Event "BL 2018-19"]
[Site "Berlin"]
[Date "2019.03.01"]
[Round "9.23"]
[White "Meinhardt, Maximilian"]
[Black "Ponomariov, Ruslan"]
[Result "0-1"]
[ECO "B25"]
[WhiteElo "2403"]
[BlackElo "2665"]
[Annotator "ChessBase"]
[PlyCount "68"]
[EventDate "2018.11.10"]
[EventType "team-tourn"]
[EventCountry "GER"]
[SourceTitle "playchess.com"]
[Source "ChessBase"]
[SourceQuality "1"]
[WhiteTeam "Viernheim"]
[BlackTeam "Hockenheim"]
[TimeControl "40/6000+30:3000+30"]

1. e4 c5 2. Nc3 Nc6 3. g3 g6 4. Bg2 Bg7 5. d3 d6 6. Nge2 Rb8 7. a4 a6 8. Be3 Nf6 9. h3 b5 {[%emt 0:16:52]} 10. axb5 {[%emt 0:16:02]} axb5 {[%emt 0:01:21]} 11. d4 {[%emt 0:08:01]} Nd7 {[%emt 0:07:02]} 12. O-O {[%emt 0:14:28]} O-O {[%emt 0:02:57]} 13. dxc5 {[%emt 0:14:56]} Nxc5 {[%emt 0:02:54]} 14. Nd4 Ne5 {[%emt 0:10:43]} 15. b3 {[%emt 0:03:45]} b4 {[%emt 0:10:02]} 16. Nd5 {[%emt 0:11:05]} e6 {[%emt 0:06:57]} 17. f4 {[%emt 0:11:43]} exd5 {[%emt 0:03:44]} 18. fxe5 {[%emt 0:00:50]} Nxe4 {[%emt 0:15:36]} 19. Nc6 {[%emt 0:00:30]} Qc7 {[%emt 0:01:21]} 20. Qxd5 {[%emt 0:04:37]} Be6 {[%emt 0:01:08]} 21. exd6 {[%emt 0:07:32]} Nxd6 {[%emt 0:00:38]} 22. Qa5 {[%emt 0:00:10]} Rbc8 {[%emt 0:01:41]} 23. Qxb4 {[%emt 0:06:42]} Bxa1 {[%emt 0:01:18]} 24. Rxa1 {[%emt 0:00:06]} Nf5 {[%emt 0:00:35]} 25. Bf4 {[%emt 0:03:37]} Qd7 {[%emt 0:01:03]} 26. Qc5 {[%emt 0:03:59]} Rfe8 {[%emt 0:06:50]} 27. b4 {[%emt 0:02:34]} f6 {[%emt 0:01:46]} 28. b5 {[%emt 0:02:20]} g5 {[%emt 0:00:25]} 29. g4 {[%emt 0:00:13]} Nh4 {[%emt 0:00:32]} 30. Ra7 {[%emt 0:00:47]} Qd1+ {[%emt 0:00:26]} 31. Bf1 {[%emt 0:00:55]} gxf4 {[%emt 0:02:28]} 32. Qh5 {[%emt 0:00:27]} Nf3+ {[%emt 0:00:39]} 33. Kg2 {[%emt 0:00:30]} Ng5 {[%emt 0:02:11]} 34. Bd3 {[%emt 0:00:36]} Bd5+ {[%emt 0:00:13]} 0-1

[Event "BL 2018-19"]
[Site "Berlin"]
[Date "2019.03.01"]
[Round "9.23"]
[White "Hoi, Carsten"]
[Black "Sebastian, Dirk"]
[Result "1/2-1/2"]
[ECO "A42"]
[WhiteElo "2380"]
[BlackElo "2442"]
[Annotator "NA"]
[PlyCount "39"]
[EventDate "2018.11.10"]
[EventType "team-tourn"]
[EventCountry "GER"]
[SourceTitle "playchess.com"]
[Source "ChessBase"]
[SourceQuality "1"]
[WhiteTeam "Kiel"]
[BlackTeam "Hamburg SK"]
[TimeControl "40/6000+30:3000+30"]

1. d4 {[%emt 0:01:23]} g6 {[%emt 0:00:00]} 2. c4 {[%emt 0:01:24]} Bg7 {[%emt 0:00:00]} 3. Nc3 {[%emt 0:00:23]} d6 {[%emt 0:00:32]} 4. e4 {[%emt 0:01:18]} Nd7 {[%emt 0:00:59]} 5. Be3 {[%emt 0:03:20]} e5 {[%emt 0:01:39]} 6. Nge2 {[%emt 0:02:04]} Ne7 {[%emt 0:02:48]} 7. Qd2 {[%emt 0:05:33]} O-O {[%emt 0:05:59]} 8. O-O-O {[%emt 0:10:45]} exd4 {[%emt 0:12:50]} 9. Nxd4 {[%emt 0:02:20]} Ne5 {[%emt 0:07:10]} 10. Be2 {[%emt 0:03:54]} N7c6 {[%emt 0:07:05]} 11. h4 {[%emt 0:07:10]} Nxd4 {[%emt 0:05:34]} 12. Bxd4 {[%emt 0:01:24]} Be6 {[%emt 0:10:32]} 13. Nd5 {[%emt 0:20:32]} Bxd5 {[%emt 0:10:47]} 14. cxd5 {[%emt 0:05:06]} Nd7 {[%emt 0:04:03]} 15. Bxg7 {[%emt 0:03:01]} Kxg7 {[%emt 0:00:08]} 16. f4 {[%emt 0:03:00]} Re8 {[%emt 0:03:41]} 17. Bf3 {[%emt 0:03:19]} h5 {[%emt 0:02:28]} 18. g3 {[%emt 0:02:38]} Qf6 {[%emt 0:02:44]} 19. Rhe1 {[%emt 0:01:24]} Re7 {[%emt 0:01:12]} 20. Re3 {[%emt 0:03:33]} 1/2-1/2

[Event "BL 2018-19"]
[Site "Berlin"]
[Date "2019.03.01"]
[Round "9.24"]
[White "Howell, David W L"]
[Black "Mandel, Andreas"]
[Result "1-0"]
[ECO "A49"]
[WhiteElo "2693"]
[BlackElo "2392"]
[Annotator "ChessBase"]
[PlyCount "107"]
[EventDate "2018.11.10"]
[EventType "team-tourn"]
[EventCountry "GER"]
[SourceTitle "playchess.com"]
[Source "ChessBase"]
[SourceQuality "1"]
[WhiteTeam "Hockenheim"]
[BlackTeam "Viernheim"]
[TimeControl "40/6000+30:3000+30"]

1. d4 {[%emt 0:00:00]} Nf6 {[%emt 0:00:00]} 2. Nf3 {[%emt 0:00:54]} g6 {[%emt 0:00:02]} 3. g3 {[%emt 0:01:50]} Bg7 {[%emt 0:00:30]} 4. Bg2 {[%emt 0:00:07]} O-O {[%emt 0:00:26]} 5. O-O {[%emt 0:00:07]} d6 {[%emt 0:00:38]} 6. b3 {[%emt 0:00:04]} c5 {[%emt 0:11:33]} 7. Bb2 {[%emt 0:01:09]} cxd4 8. Nxd4 {[%emt 0:00:16]} d5 {[%emt 0:05:50]} 9. c4 {[%emt 0:02:16]} dxc4 {[%emt 0:05:22]} 10. bxc4 {[%emt 0:00:49]} Qc7 {[%emt 0:11:10]} 11. Qc1 {[%emt 0:19:48]} Nc6 {[%emt 0:13:01]} 12. Nxc6 {[%emt 0:01:37]} bxc6 {[%emt 0:00:10]} 13. Nd2 {[%emt 0:00:06]} Bg4 {[%emt 0:09:17]} 14. Re1 {[%emt 0:02:14]} Rab8 {[%emt 0:03:25]} 15. Nb3 {[%emt 0:02:12]} Be6 {[%emt 0:14:03]} 16. Bd4 {[%emt 0:23:35]} Nd7 {[%emt 0:09:20]} 17. Qc3 {[%emt 0:06:45]} Bxd4 {[%emt 0:03:33]} 18. Nxd4 {[%emt 0:00:12]} Qe5 {[%emt 0:04:16]} 19. Qd2 {[%emt 0:21:39]} Qd6 {[%emt 0:06:18]} 20. Red1 {[%emt 0:00:09]} Ne5 {[%emt 0:03:51]} 21. Qc3 {[%emt 0:10:02]} Qb4 {[%emt 0:02:27]} 22. Qxb4 {[%emt 0:00:25]} Rxb4 {[%emt 0:00:08]} 23. c5 {[%emt 0:00:14]} Rc4 {[%emt 0:03:34]} 24. Nxe6 {[%emt 0:14:45]} fxe6 {[%emt 0:00:11]} 25. Rac1 {[%emt 0:00:12]} Rxc1 {[%emt 0:00:46]} 26. Rxc1 {[%emt 0:00:02]} Rc8 {[%emt 0:01:09]} 27. Rc3 {[%emt 0:00:09]} Rc7 {[%emt 0:01:30]} 28. Re3 {[%emt 0:01:43]} Nf7 {[%emt 0:00:47]} 29. Rxe6 {[%emt 0:00:20]} Nd8 {[%emt 0:00:07]} 30. Re3 {[%emt 0:00:13]} Kf7 {[%emt 0:00:37]} 31. f4 {[%emt 0:00:45]} Ne6 {[%emt 0:00:38]} 32. Rc3 {[%emt 0:00:18]} Nd4 {[%emt 0:00:38]} 33. Kf2 {[%emt 0:00:08]} e5 {[%emt 0:00:34]} 34. Rc4 {[%emt 0:01:18]} Kf6 {[%emt 0:00:29]} 35. e3 {[%emt 0:00:30]} Ne6 {[%emt 0:00:33]} 36. h4 {[%emt 0:00:29]} h6 {[%emt 0:00:31]} 37. Be4 {[%emt 0:00:35]} g5 {[%emt 0:00:27]} 38. hxg5+ {[%emt 0:00:27]} hxg5 {[%emt 0:00:08]} 39. f5 {[%emt 0:00:06]} Nf8 {[%emt 0:00:47]} 40. Kf3 {[%emt 0:00:45]} Nd7 {[%emt 0:00:33]} 41. Rc2 {[%emt 0:08:36]} Ke7 {[%emt 0:07:14]} 42. g4 {[%emt 0:01:15]} Rc8 {[%emt 0:02:49]} 43. Rh2 {[%emt 0:05:11]} Nf6 {[%emt 0:05:55]} 44. Rb2 {[%emt 0:06:32]} Rc7 {[%emt 0:00:51]} 45. Rb8 {[%emt 0:00:28]} Kd7 {[%emt 0:03:52]} 46. a4 {[%emt 0:07:30]} Ke7 {[%emt 0:06:28]} 47. a5 {[%emt 0:00:29]} Kd7 {[%emt 0:02:19]} 48. a6 {[%emt 0:02:10]} Ke7 {[%emt 0:00:55]} 49. Ra8 {[%emt 0:08:54]} Kd7 {[%emt 0:04:03]} 50. Rh8 {[%emt 0:00:51]} Ke7 {[%emt 0:01:26]} 51. Rh6 {[%emt 0:03:05]} Kf7 {[%emt 0:04:55]} 52. Rg6 {[%emt 0:02:02]} Nd7 {[%emt 0:05:44]} 53. Rxg5 {[%emt 0:01:26]} Nxc5 {[%emt 0:00:15]} 54. Rh5 {[%emt 0:00:15]} 1-0

[Event "BL 2018-19"]
[Site "Berlin"]
[Date "2019.03.01"]
[Round "9.24"]
[White "Carlstedt, Jonathan"]
[Black "Olsen, Filip Boe"]
[Result "1-0"]
[ECO "D00"]
[WhiteElo "2418"]
[BlackElo "2335"]
[Annotator "NA"]
[PlyCount "81"]
[EventDate "2018.11.10"]
[EventType "team-tourn"]
[EventCountry "GER"]
[SourceTitle "playchess.com"]
[Source "ChessBase"]
[SourceQuality "1"]
[WhiteTeam "Hamburg SK"]
[BlackTeam "Kiel"]
[TimeControl "40/6000+30:3000+30"]

1. d4 {[%emt 0:00:00]} d5 {[%emt 0:00:00]} 2. Bf4 {[%emt 0:00:00]} Nf6 {[%emt 0:00:07]} 3. e3 {[%emt 0:00:00]} c5 {[%emt 0:00:40]} 4. c3 {[%emt 0:00:00]} Nc6 {[%emt 0:00:21]} 5. Nd2 {[%emt 0:00:01]} Bf5 {[%emt 0:00:53]} 6. Ngf3 {[%emt 0:00:11]} e6 {[%emt 0:00:38]} 7. Nh4 {[%emt 0:02:03]} Be4 {[%emt 0:02:06]} 8. Nxe4 {[%emt 0:00:16]} Nxe4 {[%emt 0:01:55]} 9. Nf3 {[%emt 0:02:44]} g5 {[%emt 0:12:44]} 10. Bg3 {[%emt 0:03:06]} h5 {[%emt 0:03:15]} 11. Qb3 {[%emt 0:04:13]} Qc8 {[%emt 0:04:39]} 12. dxc5 {[%emt 0:04:20]} h4 {[%emt 0:19:25]} 13. Bd6 {[%emt 0:01:50]} g4 {[%emt 0:05:28]} 14. Nd4 {[%emt 0:21:51]} Nxd6 {[%emt 0:10:16]} 15. cxd6 {[%emt 0:00:46]} Bxd6 {[%emt 0:03:58]} 16. Bb5 {[%emt 0:02:30]} Ke7 {[%emt 0:05:20]} 17. O-O-O {[%emt 0:03:44]} Qc7 {[%emt 0:07:43]} 18. Be2 {[%emt 0:10:23]} Nxd4 {[%emt 0:05:01]} 19. exd4 {[%emt 0:05:07]} g3 {[%emt 0:02:58]} 20. fxg3 {[%emt 0:01:36]} hxg3 {[%emt 0:00:55]} 21. h4 {[%emt 0:00:13]} a6 {[%emt 0:01:13]} 22. Rde1 {[%emt 0:03:43]} b5 {[%emt 0:05:38]} 23. Kb1 {[%emt 0:01:03]} Rab8 {[%emt 0:03:41]} 24. h5 {[%emt 0:03:06]} Qc6 {[%emt 0:04:39]} 25. Rhf1 {[%emt 0:04:01]} a5 {[%emt 0:01:46]} 26. Qc2 {[%emt 0:02:36]} b4 {[%emt 0:02:35]} 27. Rxf7+ {[%emt 0:04:23]} Kxf7 {[%emt 0:00:55]} 28. Qg6+ {[%emt 0:00:07]} Ke7 {[%emt 0:00:15]} 29. Qg7+ {[%emt 0:00:12]} Kd8 {[%emt 0:00:35]} 30. Qxh8+ {[%emt 0:00:07]} Kd7 {[%emt 0:01:41]} 31. Qh7+ {[%emt 0:02:49]} Kd8 {[%emt 0:02:24]} 32. Qg8+ {[%emt 0:02:51]} Kc7 {[%emt 0:00:25]} 33. Qf7+ {[%emt 0:00:28]} Kd8 {[%emt 0:00:34]} 34. c4 {[%emt 0:15:54]} dxc4 {[%emt 0:00:41]} 35. Bf3 {[%emt 0:00:19]} Qd7 {[%emt 0:01:02]} 36. Qg6 {[%emt 0:00:49]} c3 {[%emt 0:00:43]} 37. Rxe6 {[%emt 0:01:13]} c2+ {[%emt 0:00:42]} 38. Kxc2 {[%emt 0:00:37]} Rc8+ {[%emt 0:00:31]} 39. Kb1 {[%emt 0:00:30]} Kc7 {[%emt 0:00:01]} 40. Re1 {[%emt 0:02:08]} Kb8 {[%emt 0:00:26]} 41. Bg4 {[%emt 0:50:17]} 1-0

[Event "BL 2018-19"]
[Site "Berlin"]
[Date "2019.03.01"]
[Round "9.25"]
[White "Kulaots, Kaido"]
[Black "Mons, Leon"]
[Result "0-1"]
[ECO "C84"]
[WhiteElo "2551"]
[BlackElo "2554"]
[Annotator "ChessBase"]
[PlyCount "140"]
[EventDate "2018.11.10"]
[EventType "team-tourn"]
[EventCountry "GER"]
[SourceTitle "playchess.com"]
[Source "ChessBase"]
[SourceQuality "1"]
[WhiteTeam "Augsburg"]
[BlackTeam "Zugzwang Muenchen"]
[TimeControl "40/6000+30:3000+30"]

1. e4 {[%emt 0:00:00]} e5 {[%emt 0:00:00]} 2. Nf3 {[%emt 0:00:00]} Nc6 {[%emt 0:00:00]} 3. Bb5 {[%emt 0:00:20]} a6 {[%emt 0:00:01]} 4. Ba4 {[%emt 0:00:15]} Nf6 {[%emt 0:00:19]} 5. O-O {[%emt 0:00:41]} Be7 {[%emt 0:00:15]} 6. d3 {[%emt 0:00:33]} b5 {[%emt 0:00:21]} 7. Bb3 {[%emt 0:00:06]} d6 {[%emt 0:00:10]} 8. a4 {[%emt 0:00:35]} Bd7 {[%emt 0:02:00]} 9. c3 {[%emt 0:02:36]} O-O {[%emt 0:01:59]} 10. Bc2 {[%emt 0:00:28]} Re8 {[%emt 0:06:46]} 11. Re1 {[%emt 0:01:16]} h6 {[%emt 0:02:47]} 12. Nbd2 {[%emt 0:00:29]} Bf8 {[%emt 0:02:31]} 13. h3 {[%emt 0:00:36]} b4 {[%emt 0:08:14]} 14. d4 {[%emt 0:03:40]} bxc3 {[%emt 0:03:45]} 15. bxc3 {[%emt 0:00:09]} exd4 {[%emt 0:04:44]} 16. cxd4 {[%emt 0:00:22]} Nb4 {[%emt 0:08:47]} 17. Bb1 {[%emt 0:00:24]} c5 {[%emt 0:05:43]} 18. d5 {[%emt 0:01:12]} a5 {[%emt 0:02:29]} 19. Nc4 {[%emt 0:03:02]} Bc8 {[%emt 0:02:31]} 20. Ra3 {[%emt 0:08:25]} Ba6 {[%emt 0:03:27]} 21. Nfd2 {[%emt 0:02:37]} g6 {[%emt 0:08:47]} 22. Bb2 {[%emt 0:04:51]} Bg7 {[%emt 0:00:40]} 23. Qc1 {[%emt 0:06:19]} Qc7 {[%emt 0:07:29]} 24. Rf3 {[%emt 0:13:00]} Nd7 {[%emt 0:03:00]} 25. Bxg7 {[%emt 0:01:39]} Kxg7 {[%emt 0:00:03]} 26. Qc3+ {[%emt 0:00:19]} Ne5 {[%emt 0:06:35]} 27. Nxe5 {[%emt 0:01:19]} dxe5 {[%emt 0:05:38]} 28. Nc4 {[%emt 0:13:08]} Bxc4 {[%emt 0:01:58]} 29. Qxc4 {[%emt 0:00:22]} Rab8 {[%emt 0:11:00]} 30. Rc1 {[%emt 0:06:10]} Rec8 {[%emt 0:00:41]} 31. Qc3 {[%emt 0:01:21]} Qd6 {[%emt 0:01:16]} 32. Qa1 {[%emt 0:03:09]} Kg8 {[%emt 0:03:42]} 33. Rfc3 {[%emt 0:01:57]} Rc7 {[%emt 0:02:45]} 34. Rc4 {[%emt 0:00:23]} Rbc8 {[%emt 0:00:53]} 35. Qc3 {[%emt 0:01:48]} Kh7 {[%emt 0:01:08]} 36. Qe3 {[%emt 0:04:44]} Kg7 {[%emt 0:00:45]} 37. Bc2 {[%emt 0:02:43]} Rb8 {[%emt 0:02:08]} 38. Bd1 {[%emt 0:07:31]} Na6 {[%emt 0:01:18]} 39. Be2 {[%emt 0:01:07]} Rb4 {[%emt 0:01:19]} 40. h4 {[%emt 0:02:22]} h5 {[%emt 0:01:24]} 41. Qc3 {[%emt 0:58:22]} Kg8 {[%emt 0:05:42]} 42. g3 {[%emt 0:00:00]} Kf8 {[%emt 0:01:06]} 43. Qc2 {[%emt 0:00:00]} Kg7 {[%emt 0:05:39]} 44. Qd2 {[%emt 0:00:00]} Rcb7 {[%emt 0:04:25]} 45. Kg2 {[%emt 0:00:00]} Rxc4 {[%emt 0:02:54]} 46. Bxc4 {[%emt 0:00:00]} Rb4 {[%emt 0:01:43]} 47. Qc2 {[%emt 0:00:00]} Nb8 {[%emt 0:10:53]} 48. Bb5 {[%emt 0:00:00]} Nd7 {[%emt 0:03:42]} 49. Bxd7 {[%emt 0:00:00]} Qxd7 {[%emt 0:00:02]} 50. Qxc5 {[%emt 0:00:00]} Rxe4 {[%emt 0:00:12]} 51. d6 {[%emt 0:00:00]} Kf6 {[%emt 0:06:04]} 52. Qc7 {[%emt 0:06:11]} Ke6 {[%emt 0:00:29]} 53. Qxa5 {[%emt 0:01:35]} Rd4 {[%emt 0:02:40]} 54. Qb6 {[%emt 0:02:26]} Rxd6 {[%emt 0:00:45]} 55. Qb3+ {[%emt 0:00:04]} Kf6 {[%emt 0:01:15]} 56. a5 {[%emt 0:00:16]} Qe6 {[%emt 0:01:31]} 57. Qf3+ {[%emt 0:02:31]} Kg7 {[%emt 0:01:46]} 58. Ra1 {[%emt 0:00:25]} Ra6 {[%emt 0:00:34]} 59. Qe4 {[%emt 0:00:42]} Kh7 {[%emt 0:01:05]} 60. Kg1 {[%emt 0:00:14]} Qd6 {[%emt 0:01:03]} 61. Qc4 {[%emt 0:00:33]} Kg7 {[%emt 0:00:46]} 62. Qb5 {[%emt 0:00:22]} Qf6 {[%emt 0:01:57]} 63. Re1 {[%emt 0:00:53]} e4 {[%emt 0:01:29]} 64. Qc5 {[%emt 0:01:29]} e3 {[%emt 0:01:57]} 65. fxe3 {[%emt 0:01:47]} Qf3 {[%emt 0:00:36]} 66. Qe5+ {[%emt 0:00:26]} Rf6 {[%emt 0:00:42]} 67. Ra1 {[%emt 0:01:23]} Kh7 {[%emt 0:00:19]} 68. a6 {[%emt 0:00:55]} Rf5 {[%emt 0:01:16]} 69. Qc7 {[%emt 0:01:26]} Qxe3+ {[%emt 0:00:09]} 70. Kh1 {[%emt 0:00:31]} Qe4+ 0-1